bitfinex-derivatives/quotes_SOLF0:USTF0_20250318
["timestamp","ask_amount","ask_price","bid_price","bid_amount"]
[1742337950567,0.05076093,124.59,124.58,47.64555424]
[1742337950765,28.3,124.64,124.58,39.61715424]
[1742337951070,28.3,124.64,124.6,11.31715424]
[1742337951461,28.3,124.64,124.62,8.0252]
[1742337951668,28.3,124.64,124.6,11.31715424]
[1742337951863,28.3,124.64,124.62,0.05446571]
[1742337952374,36.3246,124.64,124.62,8.07986571]
[1742337952581,47.64175424,124.64,124.62,8.07986571]
[1742337956661,47.64175424,124.64,124.62,0.05446571]
[1742337959986,8.0251,124.63,124.62,0.05446571]
[1742337960692,13.68367712,124.63,124.62,0.05446571]
[1742337960875,19.34225424,124.63,124.62,0.05446571]
[1742337961382,47.64205424,124.64,124.62,0.05446571]
[1742337962484,36.3249,124.64,124.62,0.05446571]
[1742337962784,36.3249,124.64,124.62,8.08016571]
[1742337963181,8.0251,124.63,124.62,0.05446571]
[1742337965080,28.3,124.64,124.62,0.05446571]
[1742337965279,11.31715424,124.67,124.62,0.05446571]
[1742337965488,11.31715424,124.67,124.63,11.31715424]
[1742337965690,19.33995424,124.67,124.65,8.0236]
[1742337965878,47.63995424,124.67,124.65,8.0236]
[1742337966075,39.61715424,124.67,124.65,0.06005038]
[1742337966280,39.61715424,124.67,124.66,8.0232]
[1742337966690,28.3,124.67,124.66,8.0232]
[1742337966993,28.3,124.67,124.65,0.06005038]
[1742337967183,39.61715424,124.67,124.65,0.06005038]
[1742337967586,8.0232,124.66,124.65,0.06005038]
[1742337982997,28.3,124.67,124.65,0.06005038]
[1742337983498,36.3226,124.67,124.65,8.08365038]
[1742337984604,28.3,124.67,124.66,8.0232]
[1742337985299,47.61935424,124.68,124.66,8.0232]
[1742337986197,28.28,124.68,124.67,8.0226]
[1742337986504,28.28,124.69,124.66,11.31715424]
[1742337987298,28.28,124.69,124.67,8.0221]
[1742337987496,28.28,124.69,124.66,11.31715424]
[1742337988508,19.33805424,124.7,124.66,11.31715424]
[1742337988696,8.0203,124.71,124.66,11.31715424]
[1742337988897,28.28,124.7,124.66,11.31715424]
[1742337989100,28.28,124.7,124.67,0.06095838]
[1742337989803,36.3003,124.71,124.67,0.06095838]
[1742337990504,36.3003,124.71,124.69,8.021]
[1742337990890,8.0196,124.72,124.67,11.37811262]
[1742337991102,36.2996,124.72,124.68,11.31715424]
[1742337991301,36.2996,124.72,124.7,8.0204]
[1742337991503,8.0194,124.72,124.7,8.0204]
[1742337991704,11.31715424,124.74,124.7,8.07981464]
[1742337991897,28.28,124.73,124.7,8.07981464]
[1742337992098,8.0194,124.72,124.7,8.07981464]
[1742337992804,8.0194,124.72,124.7,0.05941464]
[1742337995707,39.59715424,124.73,124.7,0.05941464]
[1742337996007,11.31715424,124.72,124.7,0.05941464]
[1742337996311,8.02,124.71,124.7,0.05941464]
[1742337998499,36.3,124.71,124.7,0.05941464]
[1742338013433,28.28,124.71,124.65,8.0234]
[1742338013635,11.31715424,124.69,124.65,8.0234]
[1742338013833,8.0226,124.67,124.65,8.0234]
[1742338014633,8.08027941,124.67,124.65,8.08224813]
[1742338019145,0.05767941,124.67,124.66,8.0232]
[1742338019346,28.28,124.7,124.66,4.2251]
[1742338019537,28.28,124.7,124.67,11.31715424]
[1742338020037,11.31715424,124.72,124.67,11.31715424]
[1742338020341,28.28,124.71,124.67,11.31715424]
[1742338020544,28.28,124.71,124.68,0.05066735]
[1742338021045,8.0209,124.7,124.68,8.07236735]
[1742338021233,28.28,124.71,124.68,8.07236735]
[1742338021435,28.28,124.71,124.68,0.05066735]
[1742338021948,36.3005,124.71,124.68,8.07226735]
[1742338022545,8.0207,124.7,124.68,8.07226735]
[1742338022745,28.28,124.71,124.69,8.0212]
[1742338023846,36.3002,124.71,124.69,8.0212]
[1742338024648,19.33665424,124.72,124.68,0.05066735]
[1742338024847,28.28,124.72,124.69,11.31715424]
[1742338026147,8.02,124.71,124.69,8.021]
[1742338026943,11.31715424,124.72,124.68,0.05066735]
[1742338027145,28.28,124.7,124.68,0.05066735]
[1742338027542,36.3009,124.7,124.68,8.07236735]
[1742338027742,36.3009,124.7,124.68,0.05066735]
[1742338029051,8.0213,124.69,124.68,0.05066735]
[1742338031037,19.33845424,124.69,124.68,0.05066735]
[1742338035553,8.0213,124.69,124.68,0.05066735]
[1742338036351,47.61815424,124.7,124.68,0.05066735]
[1742338036548,39.41485403,124.71,124.68,0.05066735]
[1742338036753,39.41485403,124.71,124.69,11.31715424]
[1742338036754,28.28,124.71,124.69,11.31715424]
[1742338037250,28.28,124.71,124.7,8.0201]
[1742338041755,8.0195,124.72,124.7,8.0201]
[1742338041756,36.2995,124.72,124.7,8.0201]
[1742338049559,8.0202,124.71,124.69,19.33805424]
[1742338049954,28.28,124.72,124.69,19.33805424]
[1742338050965,36.2997,124.72,124.69,19.33805424]
[1742338051261,36.2997,124.72,124.7,8.0204]
[1742338051456,28.28,124.72,124.7,8.0204]
[1742338051964,28.28,124.72,124.71,8.02]
[1742338052154,28.28,124.72,124.69,13.44745424]
[1742338054366,28.28,124.72,124.7,8.0202]
[1742338055362,28.28,124.72,124.69,13.44745424]
[1742338055363,28.28,124.72,124.71,8.02]
[1742338056167,36.2994,124.72,124.71,8.02]
[1742338058258,36.2994,124.72,124.7,8.0202]
[1742338059372,8.0194,124.72,124.7,8.0202]
[1742338059667,28.28,124.71,124.7,8.0202]
[1742338061669,55.85657036,124.75,124.69,41.72745424]
[1742338061869,44.53941612,124.75,124.72,11.31715424]
[1742338062074,44.53941612,124.75,124.74,11.31715424]
[1742338062370,44.53941612,124.75,124.74,19.33525424]
[1742338064574,36.2762,124.77,124.74,19.33525424]
[1742338064976,36.2762,124.77,124.74,19.38668768]
[1742338069882,8.0168,124.76,124.74,19.38668768]
[1742338073278,8.0174,124.75,124.74,11.36858768]
[1742338073478,8.0174,124.75,124.74,0.05143344]
[1742338073780,36.2774,124.75,124.74,0.05143344]
[1742338075084,28.26,124.77,124.74,0.05143344]
[1742338075270,28.26,124.77,124.74,11.36858768]
[1742338075583,28.26,124.77,124.75,8.017]
[1742338076991,36.2763,124.77,124.75,8.017]
[1742338083493,8.0168,124.76,124.74,8.06933344]
[1742338083981,28.26,124.77,124.74,8.06933344]
[1742338084183,28.26,124.77,124.74,0.05143344]
[1742338084590,8.0168,124.76,124.74,0.05143344]
[1742338084990,28.26,124.77,124.74,0.05143344]
[1742338085196,8.0173,124.76,124.74,8.06933344]
[1742338085382,28.26,124.77,124.74,0.05143344]
[1742338086494,8.0171,124.76,124.74,8.06923344]
[1742338090593,36.2765,124.77,124.74,8.06923344]
[1742338092187,28.26,124.77,124.74,0.05143344]
[1742338092893,8.0173,124.76,124.74,0.05143344]
[1742338093095,28.26,124.75,124.74,0.05143344]
[1742338093799,28.26,124.75,124.74,8.06953344]
[1742338094795,36.2774,124.75,124.74,0.05143344]
[1742338095096,28.26,124.75,124.74,0.05143344]
[1742338095598,28.26,124.75,124.74,8.06953344]
[1742338097401,28.26,124.75,124.74,0.05143344]
[1742338098399,36.2774,124.75,124.74,0.05143344]
[1742338105599,8.0201,124.71,124.69,10.1513]
[1742338105796,39.57715424,124.7,124.67,2.0654]
[1742338106000,28.26,124.69,124.67,2.0654]
[1742338106687,36.33486867,124.69,124.67,2.12317751]
[1742338108696,36.33486867,124.69,124.67,10.14567751]
[1742338110103,19.33905424,124.68,124.67,0.05777751]
[1742338142721,8.0245,124.64,124.63,4.2219]
[1742338143027,36.3045,124.64,124.63,4.2219]
[1742338143710,28.28,124.64,124.63,4.2219]
[1742338144328,28.28,124.64,124.63,12.247]
[1742338144622,11.17839257,124.7,124.63,51.83905424]
[1742338144818,11.17839257,124.7,124.68,8.0217]
[1742338145216,19.19909257,124.7,124.68,8.0217]
[1742338145417,11.17839257,124.7,124.69,8.0213]
[1742338145622,4.57939257,124.7,124.69,8.0213]
[1742338145925,89.42714062,124.7,124.69,8.0213]
[1742338149121,0.05990538,124.71,124.69,8.0213]
[1742338151026,8.08000538,124.71,124.69,8.0213]
[1742338152632,0.05990538,124.71,124.69,8.0213]
[1742338152822,0.05990538,124.71,124.68,4.26058707]
[1742338153028,0.05990538,124.71,124.68,15.57774131]
[1742338153228,0.05990538,124.71,124.69,2.0148]
[1742338153624,0.05990538,124.71,124.7,8.0206]
[1742338155925,0.05990538,124.71,124.69,10.0357]
[1742338156435,0.05990538,124.71,124.69,2.0148]
[1742338157941,0.05990538,124.71,124.7,8.0206]
[1742338167156,0.05990538,124.71,124.69,10.0358]
[1742338167648,8.07990538,124.71,124.69,10.0358]
[1742338167848,36.33990538,124.71,124.69,10.0358]
[1742338173261,0.05990538,124.71,124.7,8.0206]
[1742338173462,28.26,124.73,124.69,13.33195424]
[1742338173661,28.26,124.73,124.71,11.31715424]
[1742338173866,11.31715424,124.76,124.73,8.0187]
[1742338174178,28.26,124.74,124.73,8.0187]
[1742338174962,36.2777,124.75,124.73,8.0187]
[1742338177671,8.0177,124.75,124.73,8.0187]
[1742338177861,36.2777,124.75,124.73,8.0187]
[1742338178061,28.26,124.75,124.73,8.0187]
[1742338178870,36.2776,124.75,124.73,8.0187]
[1742338179072,36.2776,124.75,124.72,8.07829957]
[1742338179263,28.26,124.75,124.72,8.07829957]
[1742338179870,8.0182,124.74,124.72,8.07829957]
[1742338180368,28.26,124.75,124.72,0.05929957]
[1742338180573,36.2777,124.75,124.73,8.0186]
[1742338181173,8.0184,124.74,124.72,0.05929957]
[1742338181671,36.2787,124.73,124.72,0.05929957]
[1742338185976,47.59585424,124.73,124.72,0.05929957]
[1742338186970,39.57715424,124.73,124.67,8.0224]
[1742338187173,11.31715424,124.7,124.67,8.0224]
[1742338187373,39.57715424,124.7,124.67,8.0224]
[1742338187877,8.0214,124.69,124.67,8.0224]
[1742338188077,8.0214,124.69,124.67,8.07795092]
[1742338188282,28.31540047,124.7,124.68,8.0218]
[1742338188574,36.33630047,124.7,124.68,8.0218]
[1742338190177,36.33630047,124.7,124.67,8.07775092]
[1742338190773,8.0214,124.69,124.67,0.05555092]
[1742338193579,8.0214,124.69,124.67,8.07805092]
[1742338195682,47.65355471,124.7,124.67,8.07805092]
[1742338196067,47.65355471,124.7,124.68,8.0219]
[1742338197774,39.63255471,124.7,124.68,8.0219]
[1742338198888,28.31540047,124.7,124.67,0.05555092]
[1742338199078,28.31540047,124.7,124.67,11.37270516]
[1742338200284,0.05540047,124.7,124.69,8.0213]
[1742338201679,8.0177,124.75,124.73,8.0184]
[1742338201878,28.26,124.75,124.71,11.31715424]
[1742338202784,28.26,124.75,124.69,30.3714]
[1742338202785,39.57715424,124.75,124.69,41.68855424]
[1742338202985,8.0184,124.74,124.72,8.07525978]
[1742338204392,134.24764508,124.76,124.72,0.05615978]
[1742338204690,28.26,124.75,124.72,0.05615978]
[1742338204894,28.26,124.76,124.72,0.05615978]
[1742338205092,11.31715424,124.77,124.72,0.05615978]
[1742338205284,47.59325424,124.78,124.76,8.0166]
[1742338205485,28.26,124.78,124.76,8.0166]
[1742338205688,28.26,124.78,124.76,8.0735937]
[1742338206194,8.0152,124.79,124.77,8.0161]
[1742338206390,28.28,124.78,124.77,8.0161]
[1742338206785,28.28,124.78,124.76,8.0734937]
[1742338206979,8.0155,124.78,124.76,0.0569937]
[1742338207185,28.26,124.79,124.76,0.0569937]
[1742338208091,8.0159,124.78,124.76,0.0569937]
[1742338208303,3.1360059,124.81,124.76,0.0569937]
[1742338208589,28.26,124.8,124.76,0.0569937]
[1742338208788,8.0152,124.79,124.76,0.0569937]
[1742338209093,8.0152,124.79,124.76,8.0733937]
[1742338209392,36.2746,124.8,124.76,8.0733937]
[1742338209593,28.26,124.8,124.76,8.0733937]
[1742338209983,8.0149,124.79,124.76,8.0733937]
[1742338210494,36.2745,124.8,124.76,8.0733937]
[1742338210796,28.26,124.8,124.76,8.0733937]
[1742338210989,8.015,124.79,124.76,8.0733937]
[1742338213793,8.0156,124.78,124.76,0.0569937]
[1742338214493,8.0156,124.78,124.76,8.0737937]
[1742338214890,19.33225424,124.79,124.76,8.0737937]
[1742338215693,8.0155,124.78,124.76,8.0737937]
[1742338215890,11.31715424,124.79,124.76,0.0569937]
[1742338216094,28.26,124.77,124.76,0.0569937]
[1742338216394,36.2761,124.77,124.76,0.0569937]
[1742338217191,47.59325424,124.77,124.76,0.0569937]
[1742338218190,28.26,124.77,124.76,0.0569937]
[1742338218396,28.24,124.79,124.76,0.0569937]
[1742338218996,28.24,124.79,124.77,8.0157]
[1742338219695,36.2549,124.79,124.77,8.0157]
[1742338221686,36.2549,124.79,124.76,0.0569937]
[1742338221687,8.0157,124.78,124.76,8.0734937]
[1742338221891,39.55715424,124.79,124.76,0.0569937]
[1742338222887,11.31715424,124.77,124.76,0.0569937]
[1742338223087,39.55715424,124.77,124.76,0.0569937]
[1742338223493,47.57325424,124.77,124.76,0.0569937]
[1742338234204,39.55715424,124.77,124.76,0.0569937]
[1742338235003,47.57325424,124.77,124.76,0.0569937]
[1742338242609,39.55715424,124.77,124.76,0.0569937]
[1742338242905,39.55715424,124.77,124.76,8.0737937]
[1742338242906,28.24,124.77,124.76,8.0737937]
[1742338244103,19.33205424,124.79,124.77,8.0157]
[1742338244303,47.65205424,124.79,124.77,8.0157]
[1742338244807,39.63715424,124.79,124.78,8.0155]
[1742338245602,39.63715424,124.79,124.77,8.0157]
[1742338246809,33.60189734,124.81,124.76,11.37414794]
[1742338247005,28.3,124.8,124.76,11.37414794]
[1742338247511,36.3143,124.8,124.78,8.015]
[1742338248112,8.0143,124.8,124.78,8.015]
[1742338248413,8.0149,124.79,124.77,8.0158]
[1742338253214,3.1360059,124.81,124.77,39.59715424]
[1742338253403,3.1360059,124.81,124.79,11.31715424]
[1742338253813,3.1360059,124.81,124.79,11.36928918]
[1742338254117,3.1360059,124.81,124.79,0.05213494]
[1742338254307,3.1360059,124.81,124.8,8.0142]
[1742338254507,3.1360059,124.81,124.79,0.05213494]
[1742338254815,31.3960059,124.81,124.79,0.05213494]
[1742338255016,31.3960059,124.81,124.79,8.06653494]
[1742338255913,39.4096059,124.81,124.79,0.05213494]
[1742338257115,3.1360059,124.81,124.79,11.36928918]
[1742338258017,3.1360059,124.81,124.8,8.0142]
[1742338276630,3.14970044,124.83,124.8,8.02]
[1742338276831,3.13867002,124.85,124.81,45.88245424]
[1742338277032,3.13867002,124.85,124.84,19.32875424]
[1742338280226,3.02478264,124.87,124.84,11.31715424]
[1742338280431,3.05633502,124.88,124.86,11.31715424]
[1742338280824,3.05633502,124.88,124.87,8.0097]
[1742338281530,3.05633502,124.88,124.87,19.32685424]
[1742338284733,3.05633502,124.88,124.87,8.0097]
[1742338286642,11.06543502,124.88,124.86,8.06291496]
[1742338286943,39.28543502,124.88,124.86,0.05281496]
[1742338288846,39.28543502,124.88,124.86,8.06311496]
[1742338289946,31.27633502,124.88,124.86,8.06311496]
[1742338290149,31.27633502,124.88,124.87,8.0097]
[1742338290448,3.05633502,124.88,124.87,8.0097]
[1742338293149,3.05633502,124.88,124.86,8.06281496]
[1742338294448,3.05633502,124.88,124.87,8.0097]
[1742338298454,11.06543502,124.88,124.86,8.06281496]
[1742338299249,3.05633502,124.88,124.87,8.0097]
[1742338302658,3.05633502,124.88,124.86,0.05281496]
[1742338302847,42.59348926,124.88,124.86,0.05281496]
[1742338303957,8.0097,124.87,124.86,0.05281496]
[1742338305655,8.0124,124.83,124.79,28.22]
[1742338305851,8.0124,124.83,124.8,11.31715424]
[1742338306156,8.0127,124.83,124.79,11.31715424]
[1742338306559,8.0127,124.83,124.8,8.0137]
[1742338306860,0.0566037,124.82,124.8,0.05208802]
[1742338307759,0.0566037,124.82,124.8,8.06618802]
[1742338307954,0.0566037,124.82,124.8,0.05208802]
[1742338308155,0.0566037,124.82,124.8,8.06588802]
[1742338308756,0.0566037,124.82,124.8,0.05208802]
[1742338309150,0.0566037,124.82,124.81,8.0136]
[1742338312662,0.0566037,124.82,124.81,19.33075424]
[1742338314465,28.26,124.87,124.85,8.0109]
[1742338315659,36.2698,124.87,124.85,0.05213923]
[1742338315855,28.26,124.87,124.85,0.05213923]
[1742338316059,19.32755424,124.86,124.85,0.05213923]
[1742338316468,8.0104,124.86,124.85,0.05213923]
[1742338316655,19.32755424,124.86,124.85,0.05213923]
[1742338319170,11.31715424,124.86,124.85,8.06313923]
[1742338319361,3.05633502,124.88,124.85,0.05213923]
[1742338319758,11.06553502,124.88,124.86,8.01]
[1742338319963,3.05633502,124.88,124.85,0.05213923]
[1742338320168,3.05633502,124.88,124.86,8.0099]
[1742338320871,3.05633502,124.88,124.85,8.06273923]
[1742338321171,11.31715424,124.87,124.85,0.05213923]
[1742338321366,19.32725424,124.87,124.85,8.06283923]
[1742338321565,11.31715424,124.87,124.85,0.05213923]
[1742338321764,3.05633502,124.88,124.85,0.05213923]
[1742338322166,3.05633502,124.88,124.86,8.0099]
[1742338323162,11.31715424,124.87,124.85,8.06283923]
[1742338323457,39.59715424,124.87,124.85,8.06283923]
[1742338323665,47.60705424,124.87,124.85,8.06283923]
[1742338323864,39.59715424,124.87,124.85,8.06283923]
[1742338325172,47.60695424,124.87,124.85,8.06283923]
[1742338325368,39.59715424,124.87,124.85,8.06283923]
[1742338325574,39.59715424,124.87,124.86,8.0104]
[1742338326270,28.28,124.87,124.86,8.0104]
[1742338328074,3.05633502,124.88,124.86,8.0104]
[1742338328276,3.05633502,124.88,124.85,11.36929347]
[1742338328474,3.05633502,124.88,124.87,11.31715424]
[1742338328775,3.05633502,124.88,124.87,19.32685424]
[1742338329566,3.05633502,124.88,124.87,8.0097]
[1742338341996,3.13252487,124.89,124.88,8.0091]
[1742338342699,3.26403709,124.9,124.89,8.0084]
[1742338344202,3.26403709,124.9,124.89,36.2484]
[1742338344691,3.26403709,124.9,124.89,8.0084]
[1742338347797,3.10468472,124.91,124.9,8.0078]
[1742338349595,3.01475723,124.92,124.91,8.0072]
[1742338349802,3.01475723,124.92,124.91,47.68435424]
[1742338350299,3.01475723,124.92,124.91,36.3672]
[1742338352696,3.01475723,124.92,124.91,47.68435424]
[1742338353099,4.11862105,124.93,124.92,8.0065]
[1742338354596,4.11862105,124.93,124.92,19.32365424]
[1742338354797,4.11862105,124.93,124.92,8.0065]
[1742338355001,4.11862105,124.93,124.92,19.32365424]
[1742338355911,4.11862105,124.93,124.92,8.0065]
[1742338356206,4.11862105,124.93,124.91,36.4197763]
[1742338356603,43.81577529,124.93,124.91,0.0531763]
[1742338356804,32.49862105,124.93,124.91,0.0531763]
[1742338357306,40.50492105,124.93,124.91,0.0531763]
[1742338359012,8.0065,124.92,124.91,0.0531763]
[1742338359509,32.49862105,124.93,124.91,0.0531763]
[1742338359711,8.0065,124.92,124.91,0.0531763]
[1742338363815,40.50492105,124.93,124.91,0.0531763]
[1742338364416,8.0065,124.92,124.91,0.0531763]
[1742338365819,51.82197529,124.93,124.91,0.0531763]
[1742338366122,32.49862105,124.93,124.91,0.0531763]
[1742338366322,32.49862105,124.93,124.91,8.0596763]
[1742338367022,32.49862105,124.93,124.92,8.0065]
[1742338371023,4.11862105,124.93,124.92,8.0065]
[1742338371225,32.45862105,124.93,124.92,8.0065]
[1742338371720,4.11862105,124.93,124.92,8.0065]
[1742338380628,12.12462105,124.93,124.91,8.0599763]
[1742338381023,32.43862105,124.93,124.92,8.0065]
[1742338386037,4.11862105,124.93,124.92,19.32365424]
[1742338395931,4.11862105,124.93,124.91,0.0531763]
[1742338397338,4.11862105,124.93,124.92,8.0065]
[1742338400736,4.11862105,124.93,124.91,0.0531763]
[1742338400943,4.11862105,124.93,124.92,11.31715424]
[1742338401241,4.11862105,124.93,124.92,19.32365424]
[1742338407044,4.11862105,124.93,124.91,8.0600763]
[1742338407433,32.41862105,124.93,124.91,8.0600763]
[1742338407640,40.42502105,124.93,124.91,8.0600763]
[1742338408041,40.42502105,124.93,124.91,0.0531763]
[1742338408748,8.0065,124.92,124.91,0.0531763]
[1742338409438,40.42482105,124.93,124.91,8.0603763]
[1742338409841,32.41862105,124.93,124.91,0.0531763]
[1742338410538,40.42462105,124.93,124.91,8.0599763]
[1742338411151,32.41862105,124.93,124.91,0.0531763]
[1742338411347,32.41862105,124.93,124.92,8.0065]
[1742338412450,4.11862105,124.93,124.92,19.32365424]
[1742338414246,3.19208801,124.94,124.93,8.0059]
[1742338414450,3.19208801,124.94,124.93,19.32305424]
[1742338417064,3.19208801,124.94,124.92,39.59715424]
[1742338417353,3.19208801,124.94,124.93,11.31715424]
[1742338417543,3.19208801,124.94,124.92,19.32335424]
[1742338417751,3.19208801,124.94,124.92,11.31715424]
[1742338418453,11.19738801,124.94,124.92,11.31715424]
[1742338418759,3.19208801,124.94,124.92,19.32365424]
[1742338418959,3.19208801,124.94,124.92,11.31715424]
[1742338419456,11.19738801,124.94,124.92,11.31715424]
[1742338419659,3.19208801,124.94,124.92,11.31715424]
[1742338420056,3.19208801,124.94,124.93,19.32305424]
[1742338421151,3.19208801,124.94,124.93,47.62305424]
[1742338426564,8.801e-05,124.94,124.93,47.62305424]
[1742338436580,3.03653132,124.95,124.94,8.0052]
[1742338436776,3.03653132,124.95,124.94,19.32235424]
[1742338441188,3.132e-05,124.95,124.94,19.32235424]
[1742338441576,3.06268793,124.96,124.95,8.0046]
[1742338441775,3.06268793,124.96,124.95,36.3846]
[1742338442191,3.15060169,125.0,124.95,47.69715424]
[1742338442383,3.15060169,125.0,124.99,11.31715424]
[1742338442684,3.15060169,125.0,124.99,47.71915424]
[1742338443391,3.15060169,125.0,124.98,264.13488406]
[1742338444085,3.15060169,125.0,124.99,11.31715424]
[1742338444386,3.15060169,125.0,124.99,19.31915424]
[1742338444580,3.15060169,125.0,124.99,47.75915424]
[1742338448382,3.15060169,125.0,124.99,39.75715424]
[1742338448891,3.15060169,125.0,124.99,47.75915424]
[1742338450084,11.15200169,125.0,124.98,283.4543383]
[1742338450289,11.15200169,125.0,124.98,272.13718406]
[1742338450683,3.15060169,125.0,124.99,8.002]
[1742338451486,3.15060169,125.0,124.99,19.31915424]
[1742338451687,3.15060169,125.0,124.99,47.73915424]
[1742338452194,3.15060169,125.0,124.99,39.73715424]
[1742338452789,3.15060169,125.0,124.99,47.73915424]
[1742338454693,3.15060169,125.0,124.99,19.31915424]
[1742338455194,3.15060169,125.0,124.99,8.002]
[1742338460497,11.15200169,125.0,124.98,272.13728406]
[1742338460694,3.15060169,125.0,124.98,264.13488406]
[1742338461196,8.002,124.99,124.98,264.13488406]
[1742338461583,8.002,124.99,124.98,0.05488406]
[1742338462095,11.15230169,125.0,124.98,0.05488406]
[1742338462799,8.002,124.99,124.98,0.05488406]
[1742338466793,36.422,124.99,124.98,0.05488406]
[1742338471203,47.73915424,124.99,124.98,0.05488406]
[1742338473102,36.422,124.99,124.98,0.05488406]
[1742338475295,47.73915424,124.99,124.98,0.05488406]
[1742338482119,36.422,124.99,124.98,0.05488406]
[1742338484703,8.002,124.99,124.98,0.05488406]
[1742338485613,19.31915424,124.99,124.98,0.05488406]
[1742338491616,8.002,124.99,124.98,0.05488406]
[1742338495717,19.31915424,124.99,124.98,8.406e-05]
[1742338502023,8.002,124.99,124.98,8.406e-05]
[1742338503927,11.20721205,125.0,124.98,11.3172383]
[1742338504622,3.20551205,125.0,124.98,11.3172383]
[1742338504831,3.20551205,125.0,124.98,19.3195383]
[1742338505632,3.20551205,125.0,124.99,19.31915424]
[1742338506027,1.29552447,125.01,124.99,13.44975424]
[1742338506235,1.05112786,125.02,125.0,11.31715424]
[1742338506427,1.05112786,125.02,125.01,11.31715424]
[1742338506833,1.05112786,125.02,125.01,19.31785424]
[1742338509835,1.05112786,125.02,125.01,11.31715424]
[1742338510330,1.05112786,125.02,125.01,19.31785424]
[1742338510830,1.05112786,125.02,125.01,11.31715424]
[1742338513537,1.05112786,125.02,125.01,19.31785424]
[1742338513736,1.05112786,125.02,125.01,11.31715424]
[1742338513929,1.05112786,125.02,125.0,303.73715424]
[1742338514127,1.05112786,125.02,125.0,264.06]
[1742338514332,1.05112786,125.02,125.0,275.37715424]
[1742338515339,1.05112786,125.02,124.99,30.4526]
[1742338515340,1.05112786,125.02,124.98,11.3172383]
[1742338516235,8.001,125.01,124.99,11.31715424]
[1742338518242,8.0014,125.0,124.99,11.31715424]
[1742338519344,8.0011,125.01,124.99,11.31715424]
[1742338519848,1.05112786,125.02,124.99,11.31715424]
[1742338520053,8.0014,125.0,124.99,11.31715424]
[1742338520950,8.001,125.01,124.99,11.31715424]
[1742338521253,1.05112786,125.02,124.99,11.31715424]
[1742338521754,8.0008,125.01,124.99,11.31715424]
[1742338522252,1.05112786,125.02,124.99,11.31715424]
[1742338523153,8.0008,125.01,124.99,19.31915424]
[1742338523455,8.0008,125.01,124.99,11.31715424]
[1742338523751,8.0014,125.0,124.99,11.31715424]
[1742338525654,8.0011,125.01,124.99,11.31715424]
[1742338527651,8.0014,125.0,124.99,11.31715424]
[1742338528355,29.35112786,125.02,124.98,8.406e-05]
[1742338528550,40.6682821,125.02,124.98,8.406e-05]
[1742338530256,8.0009,125.01,124.99,11.31715424]
[1742338530458,29.35112786,125.02,124.99,11.31715424]
[1742338530651,8.001,125.01,124.99,11.31715424]
[1742338534261,37.35162786,125.02,124.99,19.31915424]
[1742338534865,8.0009,125.01,124.99,11.31715424]
[1742338535757,8.0014,125.0,124.99,11.31715424]
[1742338537362,29.35112786,125.02,124.98,11.3172383]
[1742338538560,40.6682821,125.02,124.98,11.3172383]
[1742338539256,29.35112786,125.02,124.98,11.3172383]
[1742338539461,8.001,125.01,124.99,11.31715424]
[1742338539856,29.35112786,125.02,124.99,11.31715424]
[1742338540057,37.35162786,125.02,124.99,11.31715424]
[1742338541058,37.35162786,125.02,124.99,19.31905424]
[1742338541972,29.35112786,125.02,124.98,8.406e-05]
[1742338542455,8.0018,125.0,124.98,8.406e-05]
[1742338543165,29.35112786,125.02,124.98,8.406e-05]
[1742338543664,8.0017,125.0,124.98,8.406e-05]
[1742338543864,29.35112786,125.02,124.98,8.406e-05]
[1742338546465,8.0017,125.0,124.98,8.406e-05]
[1742338546670,8.0017,125.0,124.98,8.00268406]
[1742338546873,29.35112786,125.02,124.98,8.00268406]
[1742338547166,8.0013,125.01,124.98,8.00268406]
[1742338547571,29.35112786,125.02,124.98,8.406e-05]
[1742338547872,8.0017,125.0,124.98,8.406e-05]
[1742338549576,8.0011,125.01,124.98,8.00258406]
[1742338550970,37.35162786,125.02,124.99,8.002]
[1742338551268,37.35162786,125.02,124.98,8.406e-05]
[1742338551269,29.35112786,125.02,124.98,8.406e-05]
[1742338551770,37.35152786,125.02,124.99,8.0016]
[1742338551969,9.05152786,125.02,124.99,8.0016]
[1742338552470,9.05152786,125.02,124.98,8.00238406]
[1742338553173,8.0008,125.01,124.98,8.00238406]
[1742338553469,1.05112786,125.02,124.98,8.406e-05]
[1742338553877,28.24,125.01,124.98,8.406e-05]
[1742338554974,8.002,124.99,124.98,8.406e-05]